bitfinex-derivatives/quotes_BTCF0:USTF0_20250330
["timestamp","ask_amount","ask_price","bid_price","bid_amount"]
[1743337095605,0.00110065,83083.0,83082.0,2.00984]
[1743337096203,0.00110065,83083.0,83082.0,2.04214]
[1743337096609,0.00110065,83083.0,83082.0,2.33058558]
[1743337101014,0.00110065,83083.0,83082.0,2.04214]
[1743337103603,0.00110065,83083.0,83082.0,2.07284]
[1743337105020,0.00110065,83083.0,83082.0,2.08187651]
[1743337105706,0.00110065,83083.0,83082.0,2.44267651]
[1743337107017,0.00110065,83083.0,83082.0,1.72107651]
[1743337107218,0.00110065,83083.0,83082.0,2.44267651]
[1743337109220,0.00110065,83083.0,83082.0,2.87077081]
[1743337116818,0.00110065,83083.0,83082.0,2.75493081]
[1743337117021,0.00110065,83083.0,83082.0,2.87073081]
[1743337117826,0.06,83090.0,83082.0,2.87073081]
[1743337118015,0.06,83090.0,83089.0,0.3608]
[1743337118215,0.06104001,83090.0,83089.0,0.36184]
[1743337118916,0.06104001,83090.0,83089.0,0.47764]
[1743337119116,0.06,83090.0,83089.0,0.47764]
[1743337120228,0.06112001,83090.0,83089.0,0.4893682]
[1743337123421,0.06,83090.0,83089.0,0.4893682]
[1743337129931,0.06,83090.0,83089.0,0.1285682]
[1743337130128,0.061,83090.0,83089.0,0.4893682]
[1743337130328,0.06,83090.0,83089.0,0.4893682]
[1743337130529,0.06,83090.0,83089.0,0.1285682]
[1743337130731,0.06108,83090.0,83089.0,0.1285682]
[1743337131132,0.06108,83090.0,83089.0,0.4893682]
[1743337131433,0.06,83090.0,83089.0,0.4893682]
[1743337132023,0.06,83090.0,83089.0,0.1285682]
[1743337132223,0.061,83090.0,83089.0,0.4893682]
[1743337132419,0.06,83090.0,83089.0,0.4893682]
[1743337136957,0.06,83090.0,83089.0,0.1285682]
[1743337137491,0.06,83090.0,83089.0,0.4893682]
[1743337140839,0.06,83090.0,83089.0,0.1285682]
[1743337141140,0.06072,83090.0,83089.0,0.4893682]
[1743337141440,0.06,83090.0,83089.0,0.4893682]
[1743337141843,0.06,83090.0,83089.0,0.1285682]
[1743337142133,0.061,83090.0,83089.0,0.1285682]
[1743337142336,0.061,83090.0,83089.0,0.3735682]
[1743337142545,0.06,83090.0,83089.0,0.3735682]
[1743337142836,0.06,83090.0,83089.0,0.47764]
[1743337143646,0.07213016,83090.0,83089.0,0.47764]
[1743337144761,0.06,83090.0,83089.0,0.47764]
[1743337147747,0.16822248,83090.0,83089.0,0.47764]
[1743337147942,0.16922248,83090.0,83089.0,0.47764]
[1743337148136,0.16922248,83090.0,83089.0,0.53974]
[1743337148331,0.16922248,83090.0,83089.0,0.47764]
[1743337151942,0.061,83090.0,83089.0,0.76646985]
[1743337152138,0.06,83090.0,83089.0,0.76646985]
[1743337153340,0.06,83090.0,83089.0,0.40566985]
[1743337153651,0.06,83090.0,83089.0,0.76646985]
[1743337154346,0.06,83090.0,83089.0,0.40566985]
[1743337154546,0.06,83090.0,83089.0,0.76646985]
[1743337154951,0.06,83090.0,83089.0,0.82906985]
[1743337155149,0.06,83090.0,83089.0,0.54024]
[1743337163147,0.06,83090.0,83089.0,0.17944]
[1743337163352,0.06,83090.0,83089.0,0.54024]
[1743337167857,0.06,83090.0,83089.0,0.36184]
[1743337169746,0.06,83090.0,83089.0,0.00104]
[1743337170857,0.061,83090.0,83089.0,0.00104]
[1743337175761,0.061,83090.0,83089.0,0.00304]
[1743337178551,0.061,83090.0,83089.0,0.002]
[1743337178747,0.061,83090.0,83089.0,0.001]
[1743337178952,0.061,83090.0,83089.0,0.002]
[1743337180161,0.061,83090.0,83089.0,0.003]
[1743337182257,0.061,83090.0,83089.0,0.002]
[1743337183462,0.061,83090.0,83089.0,0.005]
[1743337183656,0.061,83090.0,83089.0,0.009]
[1743337183857,0.061,83090.0,83089.0,0.005]
[1743337184065,0.061,83090.0,83089.0,0.008]
[1743337185369,0.061,83090.0,83089.0,0.003]
[1743337185571,0.061,83090.0,83089.0,0.006]
[1743337186161,0.061,83090.0,83089.0,0.0701]
[1743337186468,0.061,83090.0,83089.0,0.06718]
[1743337186665,0.061,83090.0,83089.0,0.06918]
[1743337188773,0.061,83090.0,83089.0,0.07018]
[1743337189275,0.061,83090.0,83089.0,0.07218]
[1743337189572,0.061,83090.0,83089.0,0.08391758]
[1743337191675,0.061,83090.0,83089.0,0.07018]
[1743337192372,0.061,83090.0,83089.0,0.06818]
[1743337192561,0.061,83090.0,83089.0,0.06918]
[1743337193172,0.061,83090.0,83089.0,0.07018]
[1743337193362,0.061,83090.0,83089.0,0.07218]
[1743337193866,0.061,83090.0,83089.0,0.07018]
[1743337194268,0.061,83090.0,83089.0,0.06918]
[1743337194475,0.061,83090.0,83089.0,0.07018]
[1743337194772,0.061,83090.0,83089.0,0.06618]
[1743337194974,0.061,83090.0,83089.0,0.06718]
[1743337195273,0.06064,83090.0,83089.0,0.06718]
[1743337197572,0.06064,83090.0,83089.0,0.07018]
[1743337198075,0.06064,83090.0,83089.0,0.07418]
[1743337198979,0.06,83090.0,83089.0,0.07418]
[1743337200569,0.06,83090.0,83089.0,0.07018]
[1743337200875,0.06,83090.0,83089.0,0.00908]
[1743337201076,0.211,83090.0,83089.0,0.00908]
[1743337201484,0.061,83090.0,83089.0,0.00908]
[1743337201784,0.211,83090.0,83089.0,0.00408]
[1743337201978,0.211,83090.0,83089.0,0.00708]
[1743337202387,0.211,83090.0,83089.0,0.00608]
[1743337202574,0.211,83090.0,83089.0,0.00308]
[1743337202778,0.211,83090.0,83089.0,0.00508]
[1743337202979,0.32676,83090.0,83089.0,0.00408]
[1743337203383,0.17676,83090.0,83089.0,0.00408]
[1743337203685,0.17676,83090.0,83089.0,0.003]
[1743337204283,0.17676,83090.0,83089.0,0.002]
[1743337204481,0.53756,83090.0,83089.0,0.002]
[1743337205586,0.53756,83090.0,83089.0,0.001]
[1743337205787,0.53756,83090.0,83089.0,0.002]
[1743337206675,0.53756,83090.0,83089.0,0.001]
[1743337207087,0.23529285,83090.0,83089.0,0.001]
[1743337207589,0.59609285,83090.0,83089.0,0.001]
[1743337208390,0.59609285,83090.0,83089.0,0.004]
[1743337209085,0.59609285,83090.0,83089.0,0.007]
[1743337209486,0.59609285,83090.0,83089.0,0.004]
[1743337210286,0.59609285,83090.0,83089.0,0.001]
[1743337210488,0.59609285,83090.0,83089.0,0.002]
[1743337210683,0.71780085,83090.0,83089.0,0.004]
[1743337211291,0.60204085,83090.0,83089.0,0.006]
[1743337211883,0.60204085,83090.0,83089.0,0.003]
[1743337212084,0.60204085,83090.0,83089.0,0.004]
[1743337213193,0.60204085,83090.0,83089.0,0.005]
[1743337213587,0.60204085,83090.0,83089.0,0.001]
[1743337213790,0.24124085,83090.0,83089.0,0.003]
[1743337213991,0.061,83090.0,83089.0,0.003]
[1743337214393,0.061,83090.0,83089.0,0.006]
[1743337214394,0.4218,83090.0,83089.0,0.006]
[1743337214985,0.061,83090.0,83089.0,0.006]
[1743337215188,0.4218,83090.0,83089.0,0.004]
[1743337215392,0.4218,83090.0,83089.0,0.002]
[1743337215594,0.4218,83090.0,83089.0,0.004]
[1743337219503,0.4218,83090.0,83089.0,0.002]
[1743337219704,0.4218,83090.0,83089.0,0.003]
[1743337220399,0.4218,83090.0,83089.0,0.002]
[1743337220598,0.4218,83090.0,83089.0,0.001]
[1743337220799,0.4218,83090.0,83089.0,0.002]
[1743337221198,0.4218,83090.0,83089.0,0.003]
[1743337222098,0.4218,83090.0,83089.0,0.002]
[1743337222694,0.4218,83090.0,83089.0,0.003]
[1743337223199,0.4218,83090.0,83089.0,0.002]
[1743337226607,0.66057366,83090.0,83089.0,0.002]
[1743337227301,0.66057366,83090.0,83089.0,0.003]
[1743337228008,0.66057366,83090.0,83089.0,0.002]
[1743337228209,0.66057366,83090.0,83089.0,0.004]
[1743337228804,0.66057366,83090.0,83089.0,0.002]
[1743337229109,0.66057366,83090.0,83089.0,0.001]
[1743337229408,0.66057366,83090.0,83089.0,0.002]
[1743337230011,0.78092581,83090.0,83089.0,0.002]
[1743337230803,0.78092581,83090.0,83089.0,0.001]
[1743337231206,0.78092581,83090.0,83089.0,0.002]
[1743337231416,0.71901254,83090.0,83089.0,0.002]
[1743337232505,0.35821254,83090.0,83089.0,0.002]
[1743337232705,0.71901254,83090.0,83089.0,0.002]
[1743337233505,0.71901254,83090.0,83089.0,0.001]
[1743337234108,0.71901254,83090.0,83088.0,0.08432]
[1743337234313,0.35821254,83090.0,83089.0,0.001]
[1743337234811,0.71901254,83090.0,83089.0,0.001]
[1743337235010,0.71438039,83090.0,83089.0,0.0634]
[1743337235210,0.71438039,83090.0,83089.0,0.0624]
[1743337235598,0.59866039,83090.0,83089.0,0.0624]
[1743337236907,0.59866039,83090.0,83089.0,0.095]
[1743337237211,0.59866039,83090.0,83089.0,0.096]
[1743337237411,0.23786039,83090.0,83089.0,0.096]
[1743337237606,0.23786039,83090.0,83089.0,0.097]
[1743337237806,0.59866039,83090.0,83089.0,0.097]
[1743337238014,0.59866039,83090.0,83089.0,0.096]
[1743337238211,0.59866039,83090.0,83089.0,0.097]
[1743337238610,0.23786039,83090.0,83089.0,0.097]
[1743337238911,0.59866039,83090.0,83089.0,0.09804]
[1743337239106,0.69671596,83090.0,83089.0,0.09804]
[1743337239414,0.69671596,83090.0,83089.0,0.097]
[1743337239811,0.69671596,83090.0,83089.0,0.098]
[1743337240315,0.27591596,83090.0,83089.0,0.097]
[1743337240513,0.27591596,83090.0,83089.0,0.09704]
[1743337240818,0.27591596,83090.0,83089.0,0.09804]
[1743337243119,0.001,83090.0,83089.0,0.09804]
[1743337244605,0.0321,83090.0,83089.0,0.09804]
[1743337246714,0.001,83090.0,83089.0,0.09804]
[1743337248112,0.0317,83090.0,83089.0,0.09804]
[1743337250311,0.0632,83090.0,83089.0,0.09804]
[1743337251216,0.0622,83090.0,83089.0,0.09804]
[1743337257626,0.06328,83090.0,83089.0,0.09804]
[1743337258122,0.17132794,83090.0,83089.0,0.09804]
[1743337262821,0.06328,83090.0,83089.0,0.09804]
[1743337263821,0.00108,83090.0,83089.0,0.09804]
[1743337264025,0.0004,83092.0,83089.0,0.09804]
[1743337264232,0.03114,83092.0,83089.0,0.09804]
[1743337264652,0.0302,83091.0,83089.0,0.09804]
[1743337264851,0.06388,83091.0,83089.0,0.09804]
[1743337265059,0.0301,83090.0,83089.0,0.09804]
[1743337265248,0.0301,83090.0,83089.0,0.00304]
[1743337265445,0.0613,83090.0,83089.0,0.00304]
[1743337265852,0.0603,83090.0,83089.0,0.002]
[1743337266444,0.0603,83090.0,83089.0,0.001]
[1743337266646,0.0603,83090.0,83089.0,0.002]
[1743337270931,0.0613,83090.0,83089.0,0.003]
[1743337278632,0.11983317,83090.0,83089.0,0.002]
[1743337280843,0.11983317,83090.0,83089.0,0.0654]
[1743337282940,0.11983317,83090.0,83089.0,0.0964]
[1743337284448,0.11983317,83090.0,83089.0,0.0654]
[1743337284644,0.0613,83090.0,83089.0,0.0654]
[1743337287840,0.0613,83090.0,83089.0,0.0664]
[1743337295447,0.0613,83090.0,83089.0,0.003]
[1743337295747,0.0613,83090.0,83089.0,0.002]
[1743337296147,0.18165215,83090.0,83089.0,0.002]
[1743337296348,0.18165215,83090.0,83088.0,8e-05]
[1743337296656,0.18165215,83090.0,83081.0,0.21660479]
[1743337296956,0.3608,83083.0,83081.0,0.21760479]
[1743337297152,0.0637,83082.0,83081.0,0.21760479]
[1743337297455,0.06482001,83082.0,83081.0,0.21760479]
[1743337298061,0.06482001,83082.0,83081.0,0.001]
[1743337298253,0.06382001,83082.0,83081.0,0.001]
[1743337298552,0.06282001,83082.0,83081.0,0.001]
[1743337298947,0.06282001,83082.0,83081.0,0.004]
[1743337299256,0.06282001,83082.0,83081.0,0.007]
[1743337299446,0.09602001,83082.0,83081.0,0.007]
[1743337302146,0.27622062,83082.0,83081.0,0.007]
[1743337302458,0.27622062,83082.0,83081.0,0.006]
[1743337305563,0.09602001,83082.0,83081.0,0.006]
[1743337311863,0.09602001,83082.0,83081.0,0.005]
[1743337313350,0.06282001,83082.0,83081.0,0.005]
[1743337313955,0.06282001,83082.0,83081.0,1.505]
[1743337314264,0.0617,83082.0,83081.0,1.50604]
[1743337316160,0.2059426,83082.0,83081.0,1.50604]
[1743337319462,0.0617,83082.0,83081.0,1.50604]
[1743337319865,0.0617,83082.0,83081.0,0.00604]
[1743337320067,0.0627,83082.0,83081.0,0.00604]
[1743337320265,0.4235,83082.0,83081.0,0.00604]
[1743337320462,0.4235,83082.0,83081.0,0.005]
[1743337321369,0.4235,83082.0,83081.0,0.002]
[1743337321567,0.4235,83082.0,83081.0,0.004]
[1743337321764,0.4235,83082.0,83081.0,0.002]
[1743337321968,0.4235,83082.0,83081.0,0.004]
[1743337322674,0.4235,83082.0,83081.0,0.002]
[1743337322974,0.4235,83082.0,83081.0,0.004]
[1743337324063,0.48203913,83082.0,83081.0,0.004]
[1743337324668,0.48203913,83082.0,83081.0,0.002]
[1743337324867,0.48203913,83082.0,83081.0,0.004]
[1743337325074,0.48203913,83082.0,83081.0,0.003]
[1743337325476,0.48203913,83082.0,83081.0,0.001]
[1743337325673,0.48203913,83082.0,83081.0,0.003]
[1743337331172,0.48203913,83082.0,83080.0,8e-05]
[1743337331376,0.4187,83081.0,83071.0,8e-05]
[1743337331675,0.3608,83072.0,83055.0,0.3608]
[1743337331875,0.14578,83071.0,83070.0,8e-05]
[1743337332079,0.29846373,83071.0,83070.0,8e-05]
[1743337332275,0.29746373,83071.0,83070.0,8e-05]
[1743337333074,0.18178373,83071.0,83070.0,8e-05]
[1743337333270,0.29746373,83071.0,83070.0,8e-05]
[1743337333475,0.29646373,83071.0,83070.0,8e-05]
[1743337333882,0.65726373,83071.0,83070.0,8e-05]
[1743337334777,0.65726373,83071.0,83070.0,0.00208]
[1743337334982,0.65726373,83071.0,83070.0,0.00508]
[1743337338190,0.9322968,83071.0,83070.0,0.00508]
[1743337339980,0.8166168,83071.0,83070.0,0.00508]
[1743337340181,0.9322968,83071.0,83070.0,0.00508]
[1743337340482,0.5714968,83071.0,83070.0,0.00508]
[1743337340686,0.9322968,83071.0,83070.0,0.00508]
[1743337341091,0.81193307,83071.0,83070.0,0.00508]
[1743337341994,0.59543913,83071.0,83070.0,0.00508]
[1743337345193,0.62793913,83071.0,83070.0,0.00508]
[1743337348488,0.26713913,83071.0,83070.0,0.00508]
[1743337348988,0.62793913,83071.0,83070.0,0.00508]
[1743337349591,0.26713913,83071.0,83070.0,0.00508]
[1743337349993,0.62793913,83071.0,83070.0,0.00508]
[1743337351494,0.26713913,83071.0,83070.0,0.00508]
[1743337351691,0.62793913,83071.0,83070.0,0.00508]
[1743337356983,0.75467841,83071.0,83070.0,0.00508]
[1743337358183,0.39387841,83071.0,83070.0,0.00508]
[1743337358399,0.75467841,83071.0,83070.0,0.00508]
[1743337361590,0.54679841,83071.0,83070.0,0.00508]
[1743337361992,0.18599841,83071.0,83070.0,0.00508]
[1743337362187,0.18599841,83071.0,83070.0,1.86692]
[1743337362188,0.09859841,83071.0,83070.0,1.86692]
[1743337362593,0.09859841,83071.0,83070.0,1.50612]
[1743337363801,0.09859841,83071.0,83070.0,1.51817875]
[1743337364792,0.18062051,83075.0,83070.0,1.51817875]
[1743337365001,0.18062051,83075.0,83071.0,0.0648]
[1743337365201,0.18062051,83075.0,83071.0,0.066]
[1743337366203,0.18062051,83075.0,83071.0,0.068]
[1743337366599,0.18182052,83075.0,83071.0,0.068]
[1743337367702,0.18182052,83075.0,83071.0,0.07]
[1743337368902,0.00120001,83075.0,83071.0,0.07]
[1743337370208,0.0954,83074.0,83071.0,0.0688]
[1743337370400,0.09612,83074.0,83071.0,0.036]
[1743337370603,0.09612,83074.0,83071.0,0.004]
[1743337372809,0.09612,83074.0,83071.0,0.002]
[1743337373010,0.18062051,83073.0,83071.0,0.004]
[1743337373309,0.18126051,83073.0,83071.0,0.004]
[1743337373509,0.0636,83072.0,83071.0,0.004]
[1743337373709,0.06432,83072.0,83071.0,0.004]
[1743337375107,0.06432,83072.0,83071.0,0.067]
[1743337375907,0.06432,83072.0,83071.0,0.065]
[1743337376109,0.42512,83072.0,83071.0,0.067]
[1743337376500,0.06432,83072.0,83071.0,0.067]
[1743337376811,0.42512,83072.0,83071.0,0.067]
[1743337379114,0.06432,83072.0,83071.0,0.067]
[1743337379312,0.42512,83072.0,83071.0,0.0682]
[1743337379612,0.42512,83072.0,83071.0,0.067]
[1743337381214,0.06432,83072.0,83071.0,0.067]
[1743337381417,0.06432,83072.0,83071.0,0.06828]
[1743337381917,0.42512,83072.0,83071.0,0.06828]
[1743337382118,0.42512,83072.0,83071.0,0.067]
[1743337385819,0.06432,83072.0,83071.0,0.067]
[1743337386022,0.42512,83072.0,83071.0,0.0682]
[1743337386211,0.42512,83072.0,83071.0,0.067]
[1743337390911,0.42512,83072.0,83071.0,0.0348]
[1743337394227,0.06432,83072.0,83071.0,0.0348]
[1743337397120,0.12286691,83072.0,83071.0,0.0348]
[1743337399819,0.12286691,83072.0,83071.0,0.004]
[1743337400220,0.24324513,83072.0,83053.0,0.0641]
[1743337400526,0.3608,83062.0,83061.0,8e-05]
[1743337400726,0.47756,83062.0,83061.0,8e-05]
[1743337402116,0.47756,83062.0,83061.0,0.00136]
[1743337402718,0.47756,83062.0,83061.0,0.00536]
[1743337403718,0.47756,83062.0,83061.0,0.01036]
[1743337404822,0.48677806,83062.0,83061.0,0.01036]
[1743337406328,0.76190531,83062.0,83061.0,0.01036]
[1743337406630,0.76190531,83062.0,83061.0,0.00908]
[1743337409639,0.54532497,83062.0,83061.0,0.00908]
[1743337411623,0.66571769,83062.0,83061.0,0.009]
[1743337418732,0.76121769,83062.0,83061.0,0.009]
[1743337424043,0.40041769,83062.0,83061.0,0.009]
[1743337424745,0.76121769,83062.0,83061.0,0.009]
[1743337428142,0.52188114,83062.0,83061.0,0.004]
[1743337428347,0.88268114,83062.0,83061.0,0.008]
[1743337428646,0.88228114,83062.0,83061.0,0.008]
[1743337428837,0.88228114,83062.0,83061.0,0.0718]
[1743337430139,0.76188842,83062.0,83061.0,0.0718]
[1743337430351,0.72958842,83062.0,83061.0,0.0718]
[1743337430642,0.72958842,83062.0,83061.0,0.1051]
[1743337433447,0.72958842,83062.0,83061.0,0.0718]
[1743337434735,0.72958842,83062.0,83061.0,0.0678]
[1743337434935,0.72958842,83062.0,83061.0,0.0708]
[1743337435140,0.36878842,83062.0,83061.0,0.0708]
[1743337435348,0.72958842,83062.0,83061.0,0.0708]
[1743337435734,0.36878842,83062.0,83061.0,0.0708]
[1743337436047,0.72958842,83062.0,83061.0,0.0708]
[1743337436252,0.72958842,83062.0,83061.0,0.1013]
[1743337437040,0.72958842,83062.0,83061.0,0.0973]
[1743337437245,0.72958842,83062.0,83061.0,0.1013]
[1743337437547,0.72958842,83062.0,83061.0,0.0708]
[1743337438853,0.72958842,83062.0,83061.0,0.0678]
[1743337439049,0.72958842,83062.0,83061.0,0.0708]
[1743337439549,0.36878842,83062.0,83061.0,0.0668]
[1743337439751,1.09038842,83062.0,83061.0,0.0698]
[1743337441148,0.97466842,83062.0,83061.0,0.0698]
[1743337441339,1.09038842,83062.0,83061.0,0.0383]
[1743337441539,0.36878842,83062.0,83061.0,0.0383]
[1743337441735,0.72958842,83062.0,83061.0,0.0383]
[1743337442136,0.36878842,83062.0,83061.0,0.0383]
[1743337442450,0.72958842,83062.0,83061.0,0.0383]
[1743337442846,0.72958842,83062.0,83061.0,0.0697]
[1743337444340,0.72958842,83062.0,83061.0,0.0383]
[1743337445148,0.72958842,83062.0,83061.0,0.006]
[1743337445757,0.72958842,83062.0,83061.0,0.0707]
[1743337447154,0.72958842,83062.0,83061.0,0.0376]
[1743337447340,0.72958842,83062.0,83061.0,0.006]
[1743337447545,0.72958842,83062.0,83061.0,0.003]
[1743337447747,0.72958842,83062.0,83061.0,0.006]
[1743337449953,0.36878842,83062.0,83061.0,0.006]
[1743337450150,0.72958842,83062.0,83061.0,0.006]
[1743337451454,0.36878842,83062.0,83061.0,0.006]
[1743337451653,0.72958842,83062.0,83061.0,0.006]
[1743337454155,0.72958842,83062.0,83061.0,0.0691]
[1743337455545,0.72958842,83062.0,83061.0,0.0992]
[1743337459763,0.36878842,83062.0,83061.0,0.0992]
[1743337459956,0.72958842,83062.0,83061.0,0.0992]
[1743337463966,0.55066842,83062.0,83061.0,0.0992]
[1743337464171,0.18986842,83062.0,83061.0,0.0992]
[1743337464365,0.18986842,83062.0,83061.0,0.10048]
[1743337464554,0.18560777,83062.0,83061.0,1.60048]
[1743337464757,0.18560777,83062.0,83061.0,0.10048]
[1743337465067,0.18708777,83062.0,83061.0,0.10048]
[1743337465264,0.18708777,83062.0,83061.0,0.11275416]
[1743337465467,0.18560777,83062.0,83061.0,0.11275416]
[1743337465668,0.18560777,83062.0,83061.0,0.10048]
[1743337467166,0.18560777,83062.0,83061.0,0.11269936]
[1743337467366,0.18560777,83062.0,83061.0,0.10048]
[1743337467565,0.18708777,83062.0,83061.0,0.10048]
[1743337468264,0.18560777,83062.0,83061.0,0.25048]
[1743337468470,0.18560777,83062.0,83061.0,0.26241206]
[1743337469265,0.00559741,83062.0,83061.0,0.26241206]
[1743337469465,0.14429426,83066.0,83061.0,1.76241206]
[1743337469671,0.14429426,83066.0,83065.0,0.3608]
[1743337470072,0.14429426,83066.0,83065.0,0.5122]
[1743337470268,0.14429426,83066.0,83065.0,2.0122]
[1743337470878,0.14429426,83066.0,83065.0,2.0142]
[1743337472477,0.14429426,83066.0,83065.0,2.0162]
[1743337473376,0.14429426,83066.0,83065.0,2.0152]
[1743337473877,0.14429426,83066.0,83065.0,0.5152]
[1743337474581,0.00906009,83067.0,83065.0,0.5152]
[1743337474766,0.0324,83074.0,83066.0,0.0624]
[1743337474969,0.0324,83074.0,83067.0,0.11568]
[1743337475169,0.10823951,83077.0,83067.0,0.11708]
[1743337475385,0.10971951,83077.0,83068.0,0.0624]
[1743337475572,0.10971951,83077.0,83068.0,0.0638]
[1743337475774,0.10971951,83077.0,83069.0,0.0312]
[1743337475974,0.10971951,83077.0,83069.0,0.0326]
[1743337476282,0.10971951,83077.0,83070.0,0.0312]
[1743337476478,0.10971951,83077.0,83070.0,0.03268]
[1743337477681,0.063,83076.0,83070.0,0.03368]
[1743337477986,0.06440001,83076.0,83070.0,0.03368]
[1743337479082,0.06440001,83076.0,83070.0,0.03468]
[1743337479488,0.06440001,83076.0,83070.0,0.03368]
[1743337479778,0.06440001,83076.0,83070.0,0.03468]
[1743337480578,0.00140001,83076.0,83075.0,0.3608]
[1743337480776,0.05815897,83079.0,83075.0,0.607869]
[1743337480972,0.00965898,83079.0,83078.0,0.3608]
[1743337481187,0.0089006,83095.0,83078.0,2.0108]
[1743337481379,0.0314,83094.0,83078.0,2.0126]
[1743337481579,0.21176782,83091.0,83078.0,2.0126]
[1743337481988,0.14429426,83085.0,83078.0,2.0126]
[1743337482187,0.14429426,83085.0,83084.0,0.3608]
[1743337482383,0.14429426,83085.0,83084.0,0.3626]
[1743337482579,0.14429426,83085.0,83084.0,0.5126]
[1743337484377,0.14429426,83085.0,83084.0,0.5136]
[1743337485286,0.14429426,83085.0,83084.0,2.0136]
[1743337485687,0.14429426,83085.0,83084.0,2.0126]
[1743337485884,0.14429426,83085.0,83084.0,2.260269]
[1743337487693,0.14429426,83085.0,83084.0,2.262269]
[1743337488195,0.00018054,83089.0,83084.0,2.262269]
[1743337488490,0.00018054,83089.0,83088.0,0.3608]
[1743337488793,0.00018054,83089.0,83088.0,0.3626]
[1743337488993,0.00018054,83089.0,83088.0,0.5126]
[1743337489486,0.00018054,83089.0,83088.0,0.5608]
[1743337489698,0.00018054,83089.0,83088.0,0.5638]
[1743337490192,0.00018054,83089.0,83088.0,2.0638]
[1743337490987,0.00018054,83089.0,83088.0,2.0658]
[1743337491194,0.00018054,83089.0,83088.0,1.705]
[1743337491491,0.00018054,83089.0,83088.0,2.4266]
[1743337491693,0.00018054,83089.0,83088.0,2.672269]
[1743337493785,0.0314,83103.0,83088.0,1.950669]
[1743337493984,0.0314,83103.0,83102.0,0.3608]
[1743337494191,0.0314,83103.0,83102.0,0.4782]
[1743337500894,0.0314,83103.0,83102.0,1.9782]
[1743337501993,0.0314,83103.0,83102.0,1.8626]
[1743337502197,0.0314,83103.0,83102.0,1.9782]
[1743337504293,0.0314,83103.0,83102.0,1.6174]
[1743337504603,0.0314,83103.0,83102.0,1.9842]
[1743337504803,0.0314,83103.0,83102.0,1.9902]
[1743337505302,0.0314,83103.0,83102.0,1.9842]
[1743337505510,0.0314,83103.0,83102.0,1.9902]
[1743337506006,0.0314,83103.0,83102.0,2.0227]
[1743337506193,0.0314,83103.0,83102.0,2.0217]
[1743337508213,0.0314,83103.0,83102.0,1.6609]
[1743337508403,0.0314,83103.0,83102.0,2.3825]
[1743337509312,0.0314,83103.0,83102.0,1.6609]
[1743337509695,0.0314,83103.0,83102.0,2.3825]
[1743337510103,0.0314,83103.0,83102.0,1.6609]
[1743337510311,0.0314,83103.0,83102.0,2.3825]
[1743337511210,0.0314,83103.0,83102.0,2.35]
[1743337511600,0.0314,83103.0,83102.0,2.349]
[1743337512511,0.0314,83103.0,83102.0,2.348]
[1743337513005,0.0314,83103.0,83102.0,2.3789]
[1743337513310,0.0314,83103.0,83102.0,1.6573]
[1743337513509,0.0314,83103.0,83102.0,2.3789]
[1743337514210,0.0314,83103.0,83102.0,2.09234123]
[1743337514808,0.0314,83103.0,83102.0,2.81394123]
[1743337516208,0.0314,83103.0,83102.0,2.09234123]
[1743337516902,0.0314,83103.0,83102.0,2.81394123]
[1743337517205,0.0314,83103.0,83102.0,2.82940521]
[1743337517404,0.0314,83103.0,83102.0,2.83040521]
[1743337519201,0.0314,83103.0,83102.0,2.81494123]
[1743337519403,0.0314,83103.0,83102.0,2.81094123]
[1743337519608,0.0314,83103.0,83102.0,2.81594123]
[1743337520718,0.0314,83103.0,83102.0,2.81494123]
[1743337521099,0.0314,83103.0,83102.0,2.81394123]
[1743337523808,0.0314,83103.0,83102.0,2.69834123]
[1743337524017,0.00011995,83111.0,83102.0,1.55961023]
[1743337524203,0.00011995,83111.0,83103.0,0.2928895]
[1743337524403,0.00011995,83111.0,83107.0,1.5]
[1743337524611,0.00011995,83111.0,83107.0,1.897469]
[1743337526909,0.00011995,83111.0,83107.0,1.95162485]
[1743337527814,0.00011995,83111.0,83107.0,1.94762485]
[1743337528115,0.00011995,83111.0,83107.0,1.95262485]
[1743337528304,0.00011995,83111.0,83107.0,1.96176705]
[1743337528904,0.14429426,83118.0,83107.0,2.20176705]
[1743337529111,0.14429426,83118.0,83117.0,0.7216]
[1743337529311,0.3608,83160.0,83119.0,0.245669]
[1743337529509,0.4187,83184.0,83119.0,0.245669]
[1743337529510,0.01505992,83138.0,83137.0,0.7216]
[1743337529710,0.01505992,83138.0,83137.0,2.585029]
[1743337529915,0.0004,83140.0,83137.0,2.585149]
[1743337530111,0.0322,83139.0,83138.0,0.046]
[1743337530311,0.0643,83139.0,83138.0,0.04784]
[1743337530616,0.0004,83140.0,83138.0,0.04784]
[1743337531212,0.0004,83140.0,83139.0,1.5]
[1743337531414,0.0004,83140.0,83139.0,1.5018]
[1743337531613,0.0004,83140.0,83139.0,1.5647]
[1743337532712,0.0004,83140.0,83139.0,1.810369]
[1743337533223,0.0004,83140.0,83139.0,2.223369]
[1743337534011,0.0004,83156.0,83139.0,2.223369]
[1743337534218,0.0004,83156.0,83155.0,0.7216]
[1743337534521,0.0325,83168.0,83155.0,1.085349]
[1743337534715,0.0325,83168.0,83167.0,0.3608]
[1743337534916,0.0325,83168.0,83167.0,0.724509]
[1743337535115,0.0325,83168.0,83167.0,2.224509]
[1743337535717,0.0329,83171.0,83167.0,2.224509]
[1743337535923,0.0329,83171.0,83168.0,0.0629]
[1743337536124,0.0329,83171.0,83168.0,0.06474]
[1743337536323,0.3329,83171.0,83167.0,0.558409]
[1743337536524,0.33418,83171.0,83167.0,0.559689]